fUSD/lending_fUSD_20250814
["ID","MTS","AMOUNT","RATE_DAILY","PERIOD"]
[379122871,1755151906955,-435.47,0.00054794,120]
[379122872,1755151906965,-500.0,0.00054794,2]
[379122873,1755151906975,-500.0,0.00054794,2]
[379122874,1755151906984,-164.60691344,0.00054794,2]
[379122875,1755151906994,-400.0,0.00054794,120]
[379122876,1755151907004,-400.0,0.00054794,2]
[379122877,1755151907014,-2343.63,0.00054794,120]
[379122878,1755151907024,-400.0,0.00054794,120]
[379122879,1755151907034,-1336.7,0.00054794,120]
[379122880,1755151907043,-400.0,0.00054794,120]
[379122881,1755151907052,-1524.01,0.00054794,120]
[379122882,1755151907062,-500.0,0.00054794,120]
[379122883,1755151907076,-500.0,0.00054794,120]
[379122884,1755151907086,-500.0,0.00054794,120]
[379122885,1755151907096,-500.0,0.00054794,120]
[379122886,1755151907107,-500.0,0.00054794,120]
[379122887,1755151907117,-500.0,0.00054794,120]
[379122888,1755151907126,-400.0,0.00054794,120]
[379122889,1755151907135,-500.0,0.00054794,120]
[379122890,1755151907145,-500.0,0.00054794,120]
[379122891,1755151907154,-504.7614452,0.00054794,120]
[379122892,1755151907164,-400.0,0.00054794,120]
[379122893,1755151907173,-1100.6,0.00054794,120]
[379122894,1755151907183,-807.41,0.00054794,120]
[379122895,1755151907192,-807.41,0.00054794,120]
[379122896,1755151907202,-400.0,0.00054794,120]
[379122897,1755151907212,-807.41,0.00054794,120]
[379122898,1755151907222,-807.41,0.00054794,120]
[379122899,1755151907231,-807.41,0.00054794,120]
[379122900,1755151907241,-807.41,0.00054794,120]
[379122901,1755151907250,-400.0,0.00054794,120]
[379122902,1755151907260,-807.41,0.00054794,120]
[379122903,1755151907270,-807.41,0.00054794,120]
[379122904,1755151907279,-511.48389637,0.00054794,120]
[379122905,1755151907288,-807.41,0.00054794,120]
[379122906,1755151907298,-807.41,0.00054794,120]
[379122907,1755151907308,-807.41,0.00054794,120]
[379122908,1755151907318,-807.41,0.00054794,120]
[379122909,1755151907327,-807.41,0.00054794,120]
[379122910,1755151907336,-807.41,0.00054794,120]
[379122911,1755151907346,-807.41,0.00054794,120]
[379122912,1755151907356,-2359.32,0.00054794,120]
[379122913,1755151907366,-807.41,0.00054794,120]
[379122914,1755151907376,-807.41,0.00054794,120]
[379122915,1755151907387,-807.41,0.00054794,120]
[379122916,1755151907396,-807.41,0.00054794,120]
[379122917,1755151907406,-400.0,0.00054794,120]
[379122918,1755151907416,-807.41,0.00054794,120]
[379122919,1755151907425,-807.41,0.00054794,120]
[379122920,1755151907435,-536.21,0.00054794,120]
[379122921,1755151907444,-807.41,0.00054794,120]
[379122922,1755151907454,-591.66,0.00054794,120]
[379122923,1755151907463,-807.41,0.00054794,120]
[379122924,1755151907473,-807.64900247,0.00054794,120]
[379122925,1755151907482,-400.0,0.00054794,120]
[379122926,1755151907492,-400.0,0.00054794,120]
[379122927,1755151907503,-400.0,0.00054794,120]
[379122928,1755151907512,-400.0,0.00054794,120]
[379122929,1755151907522,-400.0,0.00054794,120]
[379122930,1755151907531,-1196.29,0.00054794,120]
[379122931,1755151907542,-400.0,0.00054794,120]
[379122932,1755151907552,-680.02,0.00054794,120]
[379122933,1755151907563,-511.48,0.00054794,120]
[379122934,1755151907573,-1028.17,0.00054794,120]
[379122935,1755151907582,-450.14,0.00054794,120]
[379122936,1755151907592,-400.0,0.00054794,120]
[379122937,1755151907602,-500.0,0.00054794,120]
[379122938,1755151907612,-500.0,0.00054794,120]
[379122939,1755151907623,-500.0,0.00054794,120]
[379122940,1755151907632,-500.0,0.00054794,120]
[379122941,1755151907642,-615.19222376,0.00054794,120]
[379122942,1755151907652,-214.2178223,0.00054794,120]
[379122943,1755151907662,-512.79,0.00054794,120]
[379122944,1755151907672,-880.18,0.00054794,120]
[379122945,1755151907682,-411.91,0.00054794,120]
[379122946,1755151907691,-400.0,0.00054794,120]
[379122947,1755151907702,-400.0,0.00054794,120]
[379122948,1755151907711,-2065.78,0.00054794,120]
[379122949,1755151907722,-2269.12,0.00054794,120]
[379122950,1755151907732,-430.86,0.00054794,120]
[379122951,1755151907742,-3933.34,0.00054794,120]
[379122952,1755151907752,-400.0,0.00054794,120]
[379122953,1755151907761,-462.22000885,0.00054794,120]
[379122954,1755151907771,-400.0,0.00054794,120]
[379122955,1755151907781,-403.56942968,0.00054794,120]
[379122956,1755151907791,-400.0,0.00054794,120]
[379122957,1755151907800,-400.0,0.00054794,120]
[379122958,1755151907810,-400.0,0.00054794,120]
[379122959,1755151907820,-400.0,0.00054794,120]
[379122960,1755151907829,-567.22,0.00054794,2]
[379122961,1755151907838,-3388.22,0.00054794,120]
[379122962,1755151907847,-400.0,0.00054794,120]
[379122963,1755151907856,-806.62,0.00054794,120]
[379122964,1755151907867,-706.75,0.00054794,120]
[379122965,1755151907877,-3022.65,0.00054794,120]
[379122966,1755151907887,-400.0,0.00054794,120]
[379122967,1755151907896,-1072.62,0.00054794,120]
[379122968,1755151907906,-400.0,0.00054794,120]
[379122969,1755151907916,-474.98,0.00054794,120]
[379122970,1755151907926,-400.0,0.00054794,120]
[379122971,1755151907939,-400.0,0.00054794,120]
[379122972,1755151907949,-400.0,0.00054794,120]
[379122973,1755151907959,-400.0,0.00054794,120]
[379122974,1755151907968,-400.0,0.00054794,120]
[379122975,1755151907979,-400.0,0.00054794,120]
[379122976,1755151907988,-400.0,0.00054794,120]
[379122977,1755151907998,-400.0,0.00054794,120]
[379122978,1755151908009,-400.0,0.00054794,120]
[379122979,1755151908019,-277.58475164,0.00054794,120]
[379122980,1755151908028,-400.0,0.00054794,120]
[379122981,1755151908038,-400.0,0.00054794,120]
[379122982,1755151908048,-500.0,0.00054794,120]
[379122983,1755151908058,-400.0,0.00054794,2]
[379122984,1755151908067,-2669.21,0.00054794,120]
[379122985,1755151908078,-400.3,0.00054794,120]
[379122986,1755151908088,-1124.34,0.00054794,120]
[379122987,1755151908098,-400.0,0.00054794,120]
[379122988,1755151908108,-400.0,0.00054794,120]
[379122989,1755151908117,-400.0,0.00054794,120]
[379122990,1755151908127,-400.0,0.00054794,120]
[379122991,1755151908136,-400.0,0.00054794,120]
[379122992,1755151908146,-1646.35,0.00054794,120]
[379122993,1755151908156,-400.0,0.00054794,120]
[379122994,1755151908166,-400.0,0.00054794,30]
[379122995,1755151908175,-986.63,0.00054794,120]
[379122996,1755151908185,-1010.52,0.00054794,120]
[379122997,1755151908195,-574.51,0.00054794,120]
[379122998,1755151908204,-3068.68,0.00054794,120]
[379122999,1755151908213,-400.0,0.00054794,120]
[379123000,1755151908222,-1157.99,0.00054794,120]
[379123001,1755151908232,-1280.68,0.00054794,120]
[379123002,1755151908242,-631.96,0.00054794,120]
[379123003,1755151908251,-400.0,0.00054794,120]
[379123004,1755151908261,-400.0,0.00054794,120]
[379123005,1755151908271,-442.43,0.00054794,120]
[379123006,1755151908280,-1231.47,0.00054794,120]
[379123007,1755151908290,-2509.4,0.00054794,120]
[379123008,1755151908299,-930.15,0.00054794,120]
[379123009,1755151908309,-400.0,0.00054794,120]
[379123010,1755151908318,-400.0,0.00054794,120]
[379123011,1755151908327,-400.0,0.00054794,120]
[379123012,1755151908337,-474.55,0.00054794,120]
[379123013,1755151908347,-400.0,0.00054794,120]
[379123014,1755151908356,-500.0,0.00054794,120]
[379123015,1755151908365,-500.0,0.00054794,120]
[379123016,1755151908375,-500.0,0.00054794,120]
[379123017,1755151908384,-500.0,0.00054794,120]
[379123018,1755151908394,-500.0,0.00054794,120]
[379123019,1755151908403,-500.0,0.00054794,120]
[379123020,1755151908413,-500.0,0.00054794,120]
[379123021,1755151908423,-500.0,0.00054794,120]
[379123022,1755151908433,-400.0,0.00054794,120]
[379123023,1755151908442,-500.0,0.00054794,120]
[379123024,1755151908451,-500.0,0.00054794,120]
[379123025,1755151908461,-500.0,0.00054794,120]
[379123026,1755151908471,-500.0,0.00054794,120]
[379123027,1755151908480,-500.0,0.00054794,120]
[379123028,1755151908492,-500.0,0.00054794,120]
[379123029,1755151908501,-500.0,0.00054794,120]
[379123030,1755151908511,-500.0,0.00054794,120]
[379123031,1755151908522,-542.34,0.00054794,120]
[379123032,1755151908531,-500.0,0.00054794,120]
[379123033,1755151908541,-400.0,0.00054794,120]
[379123034,1755151908554,-500.0,0.00054794,120]
[379123035,1755151908564,-293.88137143,0.00054794,120]
[379123036,1755151908574,-400.0,0.00054794,120]
[379123037,1755151908583,-400.0,0.00054794,120]
[379123038,1755151908594,-4323.94,0.00054794,120]
[379123039,1755151908604,-1001.49,0.00054794,120]
[379123040,1755151908613,-1026.06,0.00054794,120]
[379123041,1755151908624,-2393.33,0.00054794,120]
[379123042,1755151908634,-774.99,0.00054794,120]
[379123043,1755151908752,-400.0,0.00054794,120]
[379123044,1755151908763,-4246.54,0.00054794,120]
[379123045,1755151908772,-400.0,0.00054794,120]
[379123046,1755151908781,-2333.02,0.00054794,120]
[379123047,1755151908790,-522.19,0.00054794,120]
[379123048,1755151908799,-400.0,0.00054794,120]
[379123049,1755151908808,-524.14,0.00054794,120]
[379123050,1755151908818,-481.66,0.00054794,120]
[379123051,1755151908828,-400.0,0.00054794,120]
[379123052,1755151908837,-400.0,0.00054794,120]
[379123053,1755151908846,-3378.52,0.00054794,120]
[379123054,1755151908856,-1270.22,0.00054794,120]
[379123055,1755151908865,-400.0,0.00054794,120]
[379123056,1755151908875,-471.19,0.00054794,120]
[379123057,1755151908884,-209.05955613,0.00054794,120]
[379123058,1755151908893,-596.35,0.00054794,120]
[379123059,1755151908903,-400.0,0.00054794,120]
[379123060,1755151908912,-400.0,0.00054794,120]
[379123061,1755151908927,-400.0,0.00054794,120]
[379123062,1755151908948,-400.0,0.00054794,120]
[379123063,1755151908961,-400.0,0.00054794,120]
[379123064,1755151908970,-2137.2,0.00054794,120]
[379123065,1755151908979,-784.0,0.00054794,120]
[379123066,1755151908989,-681.5,0.00054794,120]
[379123067,1755151908998,-681.5,0.00054794,120]
[379123068,1755151909007,-681.5,0.00054794,120]
[379123069,1755151909017,-681.5,0.00054794,120]
[379123070,1755151909026,-400.0,0.00054794,120]
[379123071,1755151909036,-681.5,0.00054794,120]
[379123072,1755151909046,-1201.9,0.00054794,120]
[379123073,1755151909056,-681.5,0.00054794,120]
[379123074,1755151909066,-681.5,0.00054794,120]
[379123075,1755151909075,-4803.22,0.00054794,120]
[379123076,1755151909084,-681.5,0.00054794,120]
[379123077,1755151909093,-681.5,0.00054794,120]
[379123078,1755151909103,-681.5,0.00054794,120]
[379123079,1755151909112,-681.5,0.00054794,120]
[379123080,1755151909122,-681.5,0.00054794,120]
[379123081,1755151909132,-681.5,0.00054794,120]
[379123082,1755151909142,-681.5,0.00054794,120]
[379123083,1755151909154,-830.31,0.00054794,30]
[379123084,1755151909164,-400.0,0.00054794,120]
[379123085,1755151909174,-830.31,0.00054794,30]
[379123086,1755151909184,-681.5,0.00054794,120]
[379123087,1755151909194,-400.0,0.00054794,120]
[379123088,1755151909203,-830.31,0.00054794,30]
[379123089,1755151909212,-400.0,0.00054794,120]
[379123090,1755151909223,-681.5,0.00054794,120]
[379123091,1755151909232,-2422.17,0.00054794,120]
[379123092,1755151909241,-830.31,0.00054794,30]
[379123093,1755151909251,-681.5,0.00054794,120]
[379123094,1755151909260,-170.269358,0.00054794,120]
[379123095,1755151909270,-681.5,0.00054794,120]
[379123096,1755151909279,-681.5,0.00054794,120]
[379123097,1755151909288,-830.31,0.00054794,30]
[379123098,1755151909298,-681.5,0.00054794,120]
[379123099,1755151909308,-400.0,0.00054794,120]
[379123100,1755151909318,-830.31,0.00054794,30]
[379123101,1755151909327,-681.5,0.00054794,120]
[379123102,1755151909337,-830.31,0.00054794,30]
[379123103,1755151909347,-681.5,0.00054794,120]
[379123104,1755151909356,-830.31,0.00054794,30]
[379123105,1755151909365,-681.5,0.00054794,120]
[379123106,1755151909375,-830.31,0.00054794,30]
[379123107,1755151909385,-681.60185608,0.00054794,120]
[379123108,1755151909395,-830.31,0.00054794,30]
[379123109,1755151909405,-806.69,0.00054794,120]
[379123110,1755151909414,-830.31,0.00054794,30]
[379123111,1755151909423,-830.31,0.00054794,30]
[379123112,1755151909433,-830.31,0.00054794,30]
[379123113,1755151909442,-415.24,0.00054794,2]
[379123114,1755151909451,-830.31,0.00054794,30]
[379123115,1755151909461,-830.31,0.00054794,30]
[379123116,1755151909471,-830.31,0.00054794,30]
[379123117,1755151909480,-776.05,0.00054794,120]
[379123118,1755151909489,-830.31,0.00054794,30]
[379123119,1755151909499,-756.82,0.00054794,120]
[379123120,1755151909509,-830.31,0.00054794,30]
[379123121,1755151909518,-830.31,0.00054794,30]
[379123122,1755151909528,-400.0,0.00054794,120]
[379123123,1755151909538,-830.31,0.00054794,30]
[379123124,1755151909548,-830.31,0.00054794,30]
[379123125,1755151909557,-400.0,0.00054794,120]
[379123126,1755151909567,-830.31,0.00054794,30]
[379123127,1755151909577,-830.31,0.00054794,30]
[379123128,1755151909587,-737.75,0.00054794,120]
[379123129,1755151909597,-1099.84,0.00054794,120]
[379123130,1755151909607,-2190.42,0.00054794,120]
[379123131,1755151909616,-443.25,0.00054794,120]
[379123132,1755151909627,-452.45,0.00054794,120]
[379123133,1755151909637,-400.0,0.00054794,120]
[379123134,1755151909647,-400.0,0.00054794,120]
[379123135,1755151909663,-166.362325,0.00054794,120]
[379123136,1755151909674,-1674.15,0.00054794,120]
[379123137,1755151909683,-3816.16,0.00054794,120]
[379123138,1755151909694,-2600.42,0.00054794,120]
[379123139,1755151909704,-400.0,0.00054794,120]
[379123140,1755151909714,-1324.56,0.00054794,120]
[379123141,1755151909723,-500.0,0.00054794,120]
[379123142,1755151909732,-400.0,0.00054794,120]
[379123143,1755151909742,-3126.37,0.00054794,120]
[379123144,1755151909751,-400.0,0.00054794,120]
[379123145,1755151909761,-4802.33,0.00054794,120]
[379123146,1755151909770,-532.53,0.00054794,120]
[379123147,1755151909780,-738.08,0.00054794,120]
[379123148,1755151909789,-830.46520213,0.00054794,30]
[379123149,1755151909798,-400.0,0.00054794,120]
[379123150,1755151909807,-400.0,0.00054794,120]
[379123151,1755151909816,-400.0,0.00054794,120]
[379123152,1755151909825,-400.0,0.00054794,120]
[379123153,1755151909835,-451.43,0.00054794,120]
[379123154,1755151909844,-1432.3,0.00054794,120]
[379123155,1755151909853,-1799.4,0.00054794,120]
[379123156,1755151909862,-3657.22,0.00054794,120]
[379123157,1755151909872,-3965.56,0.00054794,120]
[379123158,1755151909882,-4912.44,0.00054794,120]
[379123159,1755151909891,-863.57,0.00054794,120]
[379123160,1755151909901,-865.8,0.00054794,120]
[379123161,1755151909910,-400.0,0.00054794,120]
[379123162,1755151909921,-2237.49,0.00054794,120]
[379123163,1755151909930,-502.74925363,0.00054794,120]
[379123164,1755151909942,-400.0,0.00054794,120]
[379123165,1755151909951,-400.0,0.00054794,120]
[379123166,1755151909960,-1845.1,0.00054794,120]
[379123167,1755151909969,-1326.15,0.00054794,120]
[379123168,1755151909979,-1272.25,0.00054794,120]
[379123169,1755151909988,-2005.83,0.00054794,120]
[379123170,1755151909997,-426.4,0.00054794,120]
[379123171,1755151910009,-400.0,0.00054794,120]
[379123172,1755151910019,-972.75,0.00054794,120]
[379123173,1755151910029,-2900.54,0.00054794,120]
[379123174,1755151910038,-400.0,0.00054794,120]
[379123175,1755151910047,-1144.13,0.00054794,120]
[379123176,1755151910057,-400.0,0.00054794,60]
[379123177,1755151910066,-2076.9,0.00054794,120]
[379123178,1755151910075,-2172.78,0.00054794,120]
[379123179,1755151910085,-400.0,0.00054794,120]
[379123180,1755151910094,-400.79874214,0.00054794,120]
[379123181,1755151910103,-400.0,0.00054794,120]
[379123182,1755151910112,-2988.88,0.00054794,120]
[379123183,1755151910123,-2430.89,0.00054794,120]
[379123184,1755151910132,-400.0,0.00054794,120]
[379123185,1755151910142,-404.44,0.00054794,120]
[379123186,1755151910151,-569.34,0.00054794,120]
[379123187,1755151910161,-500.2,0.00054794,120]
[379123188,1755151910170,-400.0,0.00054794,120]
[379123189,1755151910180,-400.0,0.00054794,120]
[379123190,1755151910189,-3569.53,0.00054794,120]
[379123191,1755151910199,-500.0,0.00054794,120]
[379123192,1755151910208,-3569.53,0.00054794,120]
[379123193,1755151910217,-2059.24,0.00054794,120]
[379123194,1755151910227,-500.0,0.00054794,120]
[379123195,1755151910236,-400.0,0.00054794,120]
[379123196,1755151910246,-2090.14,0.00054794,120]
[379123197,1755151910255,-3569.53,0.00054794,120]
[379123198,1755151910265,-500.0,0.00054794,120]
[379123199,1755151910274,-500.0,0.00054794,120]
[379123200,1755151910283,-3569.53,0.00054794,120]
[379123201,1755151910292,-3569.53,0.00054794,120]
[379123202,1755151910301,-500.0,0.00054794,120]
[379123203,1755151910310,-500.0,0.00054794,120]
[379123204,1755151910319,-3569.53,0.00054794,120]
[379123205,1755151910329,-500.0,0.00054794,120]
[379123206,1755151910338,-3569.53,0.00054794,120]
[379123207,1755151910348,-756.39,0.00054794,120]
[379123208,1755151910357,-500.0,0.00054794,120]
[379123209,1755151910366,-3569.53,0.00054794,120]
[379123210,1755151910377,-500.0,0.00054794,120]
[379123211,1755151910386,-3569.53,0.00054794,120]
[379123212,1755151910396,-3724.14,0.00054794,120]
[379123213,1755151910406,-400.0,0.00054794,120]
[379123214,1755151910415,-383.81287353,0.00054794,120]
[379123215,1755151910425,-3569.53,0.00054794,120]
[379123216,1755151910433,-3569.53,0.00054794,120]
[379123217,1755151910441,-3569.53,0.00054794,120]
[379123218,1755151910451,-1288.69,0.00054794,120]
[379123219,1755151910460,-3569.53,0.00054794,120]
[379123220,1755151910469,-3569.53,0.00054794,120]
[379123221,1755151910479,-433.35,0.00054794,120]
[379123222,1755151910488,-3569.53,0.00054794,120]
[379123223,1755151910497,-3569.53,0.00054794,120]
[379123224,1755151910507,-3569.53,0.00054794,120]
[379123225,1755151910516,-2677.37,0.00054794,120]
[379123226,1755151910525,-3569.53,0.00054794,120]
[379123227,1755151910534,-642.07,0.00054794,120]
[379123228,1755151910543,-3569.53,0.00054794,120]
[379123229,1755151910553,-3569.53,0.00054794,120]
[379123230,1755151910562,-400.0,0.00054794,120]
[379123231,1755151910571,-3569.53,0.00054794,120]
[379123232,1755151910581,-3569.53,0.00054794,120]
[379123233,1755151910590,-3569.53,0.00054794,120]
[379123234,1755151910600,-3569.63116017,0.00054794,120]
[379123235,1755151910609,-2452.24,0.00054794,120]
[379123236,1755151910618,-455.81,0.00054794,120]
[379123237,1755151910628,-5534.33,0.00054794,120]
[379123238,1755151910637,-540.75868278,0.00054794,120]
[379123239,1755151910647,-726.09,0.00054794,120]
[379123240,1755151910656,-439.2,0.00054794,120]
[379123241,1755151910665,-1671.75,0.00054794,120]
[379123242,1755151910675,-2660.6,0.00054794,120]
[379123243,1755151910685,-1395.59,0.00054794,120]
[379123244,1755151910694,-499.13,0.00054794,120]
[379123245,1755151910703,-400.0,0.00054794,120]
[379123246,1755151910713,-3020.26,0.00054794,120]
[379123247,1755151910722,-400.0,0.00054794,120]
[379123248,1755151910731,-400.0,0.00054794,120]
[379123249,1755151910740,-400.0,0.00054794,120]
[379123250,1755151910749,-400.0,0.00054794,120]
[379123251,1755151910759,-400.0,0.00054794,120]
[379123252,1755151910767,-400.0,0.00054794,120]
[379123253,1755151910775,-720.26,0.00054794,120]
[379123254,1755151910784,-400.0,0.00054794,120]
[379123255,1755151910793,-400.0,0.00054794,120]
[379123256,1755151910802,-400.0,0.00054794,120]
[379123257,1755151910811,-1133.0,0.00054794,60]
[379123258,1755151910820,-5312.63,0.00054794,120]
[379123259,1755151910829,-722.15,0.00054794,120]
[379123260,1755151910838,-400.0,0.00054794,120]
[379123261,1755151910847,-680.09,0.00054794,120]
[379123262,1755151910856,-3020.77,0.00054794,120]
[379123263,1755151910865,-400.0,0.00054794,120]
[379123264,1755151910875,-400.0,0.00054794,120]
[379123265,1755151910885,-4215.1,0.00054794,120]
[379123266,1755151910897,-1052.61,0.00054794,120]
[379123267,1755151910907,-703.6,0.00054794,120]
[379123268,1755151910915,-400.0,0.00054794,120]
[379123269,1755151910925,-400.0,0.00054794,120]
[379123270,1755151910937,-400.0,0.00054794,120]
[379123271,1755151910946,-400.0,0.00054794,120]
[379123272,1755151910956,-400.0,0.00054794,120]
[379123273,1755151910965,-433.78,0.00054794,120]
[379123274,1755151910975,-400.0,0.00054794,120]
[379123275,1755151910985,-627.09,0.00054794,120]
[379123276,1755151910994,-400.0,0.00054794,120]
[379123277,1755151911005,-3691.93,0.00054794,120]
[379123278,1755151911015,-400.0,0.00054794,120]
[379123279,1755151911024,-576.65,0.00054794,120]
[379123280,1755151911033,-443.52,0.00054794,120]
[379123281,1755151911043,-3887.95,0.00054794,120]
[379123282,1755151911051,-1655.04,0.00054794,120]
[379123283,1755151911060,-1229.44,0.00054794,120]
[379123284,1755151911070,-400.0,0.00054794,120]
[379123285,1755151911079,-400.0,0.00054794,120]
[379123286,1755151911088,-400.0,0.00054794,120]
[379123287,1755151911098,-831.55,0.00054794,120]
[379123288,1755151911107,-1044.57,0.00054794,120]
[379123289,1755151911116,-416.03088745,0.00054794,120]
[379123290,1755151911126,-400.0,0.00054794,120]
[379123291,1755151911135,-937.86,0.00054794,120]
[379123292,1755151911144,-400.0,0.00054794,120]
[379123293,1755151911153,-400.0,0.00054794,120]
[379123294,1755151911162,-400.0,0.00054794,120]
[379123295,1755151911172,-465.01,0.00054794,120]
[379123296,1755151911181,-400.0,0.00054794,120]
[379123297,1755151911190,-400.0,0.00054794,120]
[379123298,1755151911200,-430.45,0.00054794,120]
[379123299,1755151911209,-400.0,0.00054794,120]
[379123300,1755151911218,-1145.39,0.00054794,120]
[379123301,1755151911227,-400.0,0.00054794,120]
[379123302,1755151911237,-400.0,0.00054794,120]
[379123303,1755151911246,-400.0,0.00054794,120]
[379123304,1755151911256,-727.77,0.00054794,120]
[379123305,1755151911265,-741.62,0.00054794,120]
[379123306,1755151911275,-721.15,0.00054794,120]
[379123307,1755151911284,-400.0,0.00054794,120]
[379123308,1755151911294,-819.26,0.00054794,120]
[379123309,1755151911303,-3068.16,0.00054794,120]
[379123310,1755151911312,-3128.9,0.00054794,120]
[379123311,1755151911322,-400.0,0.00054794,120]
[379123312,1755151911331,-250.0,0.00054794,120]
[379123313,1755151911340,-400.0,0.00054794,120]
[379123314,1755151911349,-175.41693055,0.00054794,120]
[379123315,1755151911359,-400.0,0.00054794,120]
[379123316,1755151911369,-400.0,0.00054794,120]
[379123317,1755151911380,-400.0,0.00054794,120]
[379123318,1755151911390,-809.93,0.00054794,120]
[379123319,1755151911399,-352.73,0.00054794,120]
[379123320,1755151911408,-1496.83,0.00054794,15]
[379123321,1755151911418,-611.84,0.00054794,120]
[379123322,1755151911427,-952.2,0.00054794,120]
[379123323,1755151911437,-400.0,0.00054794,120]
[379123324,1755151911447,-1451.73,0.00054794,120]
[379123325,1755151911456,-400.0,0.00054794,120]
[379123326,1755151911466,-437.35,0.00054794,120]
[379123327,1755151911475,-400.0,0.00054794,120]
[379123328,1755151911485,-400.0,0.00054794,120]
[379123329,1755151911495,-400.0,0.00054794,120]
[379123330,1755151911504,-400.0,0.00054794,120]
[379123331,1755151911514,-1629.11,0.00054794,120]
[379123332,1755151911523,-400.0,0.00054794,120]
[379123333,1755151911533,-661.99,0.00054794,120]
[379123334,1755151911542,-535.39896609,0.00054794,120]
[379123335,1755151911552,-515.21,0.00054794,120]
[379123336,1755151911562,-400.0,0.00054794,120]
[379123337,1755151911571,-400.0,0.00054794,120]
[379123338,1755151911581,-243.11,0.00054794,120]
[379123339,1755151911591,-400.0,0.00054794,120]
[379123340,1755151911600,-400.0,0.00054794,120]
[379123341,1755151911610,-403.92007972,0.00054794,120]
[379123342,1755151911620,-1786.76,0.00054794,120]
[379123343,1755151911630,-400.0,0.00054794,120]
[379123344,1755151911639,-1840.29,0.00054794,120]
[379123345,1755151911648,-400.0,0.00054794,120]
[379123346,1755151911657,-400.0,0.00054794,120]
[379123347,1755151911666,-3929.46,0.00054794,120]
[379123348,1755151911675,-3929.46,0.00054794,120]
[379123349,1755151911685,-3929.46,0.00054794,120]
[379123350,1755151911694,-3929.46,0.00054794,120]
[379123351,1755151911703,-400.0,0.00054794,120]
[379123352,1755151911713,-3929.46,0.00054794,120]
[379123353,1755151911724,-2846.48,0.00054794,120]
[379123354,1755151911735,-3929.46,0.00054794,120]
[379123355,1755151911745,-3929.46,0.00054794,120]
[379123356,1755151911754,-3929.46,0.00054794,120]
[379123357,1755151911764,-400.0,0.00054794,120]
[379123358,1755151911773,-3929.46,0.00054794,120]
[379123359,1755151911782,-400.0,0.00054794,120]
[379123360,1755151911792,-3929.46,0.00054794,120]
[379123361,1755151911803,-400.0,0.00054794,120]
[379123362,1755151911813,-3003.6,0.00054794,120]
[379123363,1755151911823,-3929.46,0.00054794,120]
[379123364,1755151911832,-3929.46,0.00054794,120]
[379123365,1755151911842,-1972.56,0.00054794,120]
[379123366,1755151911852,-3929.46,0.00054794,120]
[379123367,1755151911861,-3929.46,0.00054794,120]
[379123368,1755151911869,-507.26,0.00054794,120]
[379123369,1755151911879,-3929.46,0.00054794,120]
[379123370,1755151911887,-445.62,0.00054794,120]